bitfinex-derivatives/quotes_BNBF0:USTF0_20250617
["timestamp","ask_amount","ask_price","bid_price","bid_amount"]
[1750193493265,1.0179566,647.37,646.69,0.30926719]
[1750193493465,1.0179566,647.36,646.69,0.30926719]
[1750193493668,1.0179566,647.35,646.69,0.30926719]
[1750193493867,1.15018636,647.59,646.69,0.30926719]
[1750193494066,1.01753178,647.58,646.69,0.30926719]
[1750193494267,1.01753178,647.57,646.69,0.30926719]
[1750193494571,1.01753178,647.56,646.69,0.30926719]
[1750193494774,1.01753178,647.55,646.69,2.61096371]
[1750193494971,1.01753178,647.54,646.7,2.30169652]
[1750193495169,1.01753178,647.53,646.71,2.61095414]
[1750193495472,1.01753178,647.52,646.73,2.30169652]
[1750193495772,1.01753178,647.51,646.74,0.30924328]
[1750193495972,1.01753178,647.5,646.74,0.30924328]
[1750193496172,1.01753178,647.49,646.74,0.30924328]
[1750193496373,1.01753178,647.48,646.74,0.30924328]
[1750193496569,1.01753178,647.47,646.74,0.30924328]
[1750193496774,1.01753178,647.46,646.74,0.30924328]
[1750193496974,1.01753178,647.45,646.74,0.30924328]
[1750193497174,1.01753178,647.44,646.74,0.30924328]
[1750193497371,1.15018636,647.67,646.74,0.30924328]
[1750193497575,1.01698817,647.66,646.74,0.30924328]
[1750193497870,1.01698817,647.65,646.75,2.30169652]
[1750193498174,1.01698817,647.64,646.76,0.30923371]
[1750193498369,1.01698817,647.63,646.76,0.30923371]
[1750193498573,1.01698817,647.62,646.76,0.30923371]
[1750193498769,1.01698817,647.61,646.76,0.30923371]
[1750193498969,1.01698817,647.6,646.76,0.30923371]
[1750193499174,1.01698817,647.59,646.76,0.30923371]
[1750193499371,1.01698817,647.58,646.76,0.30923371]
[1750193499670,1.01698817,647.57,646.76,0.30923371]
[1750193499874,1.01698817,647.56,646.76,0.30923371]
[1750193500072,1.01698817,647.55,646.76,0.30923371]
[1750193500273,1.01698817,647.54,646.76,0.30923371]
[1750193500476,1.01698817,647.53,646.76,0.30923371]
[1750193500671,1.01698817,647.52,646.76,0.30923371]
[1750193500873,1.01698817,647.51,646.76,0.30923371]
[1750193501072,1.01698817,647.5,646.76,0.30923371]
[1750193501275,1.01698817,647.49,646.76,0.30923371]
[1750193501475,1.01698817,647.48,646.76,0.30923371]
[1750193501678,0.26883278,647.72,646.76,0.30923371]
[1750193501679,1.01698817,647.47,646.76,0.30923371]
[1750193501881,1.01698817,647.46,646.76,0.30923371]
[1750193502076,1.01698817,647.45,646.76,0.30923371]
[1750193502278,0.26883278,647.72,646.76,0.30923371]
[1750193502279,1.01698817,647.44,646.76,0.30923371]
[1750193502484,1.01698817,647.43,646.76,0.30923371]
[1750193502681,1.01698817,647.42,646.77,1.43]
[1750193502875,1.01698817,647.41,646.77,1.43]
[1750193503079,1.01698817,647.4,646.77,1.43]
[1750193503281,1.01698817,647.39,646.77,1.43]
[1750193503578,1.01698817,647.38,646.77,1.43]
[1750193503781,1.01698817,647.37,646.77,1.43]
[1750193503981,1.01698817,647.36,646.77,1.43]
[1750193504276,1.01698817,647.35,646.77,1.43]
[1750193504476,1.01698817,647.34,646.77,1.43]
[1750193504677,1.01698817,647.33,646.77,1.43]
[1750193504881,1.01698817,647.32,646.77,1.43]
[1750193505178,1.01698817,647.31,646.77,1.43]
[1750193505383,1.01698817,647.3,646.77,1.43]
[1750193505684,1.01698817,647.29,646.77,1.43]
[1750193505882,1.15018636,647.56,646.77,1.43]
[1750193506083,1.0164263,647.55,646.77,1.43]
[1750193506383,1.0164263,647.54,646.77,1.43]
[1750193506585,1.0164263,647.53,646.77,1.43]
[1750193506783,1.0164263,647.52,646.77,1.43]
[1750193507079,1.0164263,647.51,646.77,1.43]
[1750193507278,1.0164263,647.5,646.77,1.43]
[1750193507582,1.0164263,647.49,646.77,1.43]
[1750193507883,1.0164263,647.48,646.77,1.43]
[1750193508079,1.0164263,647.47,646.77,1.43]
[1750193508279,1.0164263,647.46,646.77,1.43]
[1750193508583,1.0164263,647.45,646.78,1.353]
[1750193508879,1.0164263,647.44,646.78,1.353]
[1750193509081,1.0164263,647.43,646.78,1.353]
[1750193509282,1.0164263,647.42,646.78,1.353]
[1750193509478,1.0164263,647.41,646.78,1.353]
[1750193509680,1.0164263,647.4,646.78,1.353]
[1750193509878,1.0164263,647.39,646.78,1.353]
[1750193510081,1.0164263,647.38,646.78,1.353]
[1750193510281,1.0164263,647.37,646.78,1.353]
[1750193510480,1.0164263,647.36,646.78,1.353]
[1750193510678,1.0164263,647.35,646.78,1.353]
[1750193510876,1.5356553,647.65,646.78,1.353]
[1750193510877,1.0164263,647.34,646.78,1.353]
[1750193511080,1.0164263,647.33,646.78,1.353]
[1750193511284,1.0164263,647.32,646.78,1.353]
[1750193511584,1.0164263,647.31,646.78,1.353]
[1750193511783,1.0164263,647.3,646.78,1.353]
[1750193511979,1.0164263,647.29,646.78,1.353]
[1750193512284,1.15018636,647.51,646.78,1.353]
[1750193512584,2.16604141,647.5,646.78,1.353]
[1750193512784,1.01585505,647.49,646.78,1.353]
[1750193512985,1.01585505,647.48,646.78,1.353]
[1750193513185,1.01585505,647.47,646.78,1.353]
[1750193513482,1.01585505,647.46,646.78,1.353]
[1750193513685,1.15018636,647.5,646.78,1.353]
[1750193513686,1.01585505,647.45,646.78,1.353]
[1750193513881,1.01585505,647.44,646.78,1.353]
[1750193514181,1.15018636,647.49,646.78,1.353]
[1750193514182,1.01585505,647.43,646.78,1.353]
[1750193514382,1.01585505,647.42,646.78,1.353]
[1750193514586,1.01585505,647.41,646.78,1.353]
[1750193514787,1.01585505,647.4,646.78,1.353]
[1750193515087,1.01585505,647.39,646.78,1.353]
[1750193515290,1.01585505,647.38,646.78,1.353]
[1750193515587,1.01585505,647.37,646.78,1.353]
[1750193515789,1.01585505,647.36,646.78,1.353]
[1750193515988,1.01585505,647.35,646.78,1.353]
[1750193516189,1.01585505,647.34,646.78,1.353]
[1750193516386,1.01585505,647.33,646.78,1.353]
[1750193516690,1.01585505,647.32,646.78,1.353]
[1750193516889,1.01585505,647.31,646.78,1.353]
[1750193517189,1.01585505,647.3,646.78,1.353]
[1750193517489,1.01585505,647.29,646.78,1.353]
[1750193517685,1.01585505,647.28,646.78,1.353]
[1750193517886,1.01585505,647.27,646.78,1.353]
[1750193518085,1.01585505,647.26,646.78,1.353]
[1750193518290,1.01585505,647.25,646.78,1.353]
[1750193518586,1.016776,647.24,646.78,1.353]
[1750193518785,1.15018636,647.46,646.78,1.353]
[1750193518990,1.01677751,647.45,646.78,1.353]
[1750193519289,1.01677751,647.44,646.78,1.353]
[1750193519485,1.01677751,647.43,646.78,1.353]
[1750193519784,1.01677751,647.42,646.78,1.353]
[1750193519986,1.01677751,647.41,646.78,1.353]
[1750193520189,1.01677751,647.4,646.78,1.353]
[1750193520485,2.29140022,647.71,646.78,1.353]
[1750193520486,1.01677751,647.39,646.78,1.353]
[1750193520689,1.01677751,647.38,646.78,1.353]
[1750193520890,1.01677751,647.37,646.78,1.353]
[1750193521090,0.26883278,647.72,646.78,1.353]
[1750193521091,1.01677751,647.36,646.78,1.353]
[1750193521393,1.01677751,647.35,646.78,1.353]
[1750193521589,1.01677751,647.34,646.78,1.353]
[1750193521887,1.01677751,647.33,646.78,1.353]
[1750193522089,1.15018636,647.43,646.78,1.353]
[1750193522090,1.01677751,647.32,646.78,1.353]
[1750193522292,1.01677751,647.31,646.78,1.353]
[1750193522589,1.01677751,647.3,646.78,1.353]
[1750193522791,1.01677751,647.29,646.78,1.353]
[1750193522986,1.01677751,647.28,646.78,1.353]
[1750193523191,1.01677751,647.27,646.78,1.353]
[1750193523393,1.01677751,647.26,646.78,1.353]
[1750193523593,1.01677751,647.25,646.78,1.353]
[1750193523792,1.01677751,647.24,646.78,1.353]
[1750193523992,1.01677751,647.23,646.78,1.353]
[1750193524194,1.15018636,647.43,646.78,1.353]
[1750193524390,1.01685433,647.42,646.78,1.353]
[1750193524588,1.01685433,647.41,646.78,1.353]
[1750193524789,1.01685433,647.4,646.78,1.353]
[1750193524992,1.01685433,647.39,646.78,1.353]
[1750193525293,1.01685433,647.38,646.78,1.353]
[1750193525496,1.01685433,647.37,646.78,1.353]
[1750193525791,2.16704069,647.36,646.78,1.353]
[1750193525989,1.01685433,647.35,646.78,1.353]
[1750193526191,1.01685433,647.34,646.78,1.353]
[1750193526390,3.81900036,648.08,646.78,1.353]
[1750193526391,1.01685433,647.33,646.78,1.353]
[1750193526594,1.01685433,647.32,646.78,1.353]
[1750193526895,1.01685433,647.31,646.78,1.353]
[1750193527093,1.01685433,647.3,646.78,1.353]
[1750193527291,1.01685433,647.29,646.78,1.353]
[1750193527491,1.01685433,647.28,646.78,1.353]
[1750193527697,1.01685433,647.27,646.79,0.956]
[1750193527896,1.01685433,647.26,646.79,0.956]
[1750193528096,1.01685433,647.25,646.79,0.956]
[1750193528396,1.01685433,647.24,646.79,0.956]
[1750193528596,1.01685433,647.23,646.79,0.956]
[1750193528797,1.01685433,647.22,646.79,0.956]
[1750193528995,1.01685433,647.21,646.79,0.956]
[1750193529195,1.01685433,647.2,646.79,0.956]
[1750193529392,1.01685433,647.19,646.79,0.956]
[1750193529692,1.01685433,647.18,646.79,0.956]
[1750193529898,1.01685433,647.17,646.79,0.956]
[1750193530096,1.01685433,647.16,646.79,0.956]
[1750193530298,1.01685433,647.15,646.79,0.956]
[1750193530498,1.01685433,647.14,646.79,0.956]
[1750193530798,1.01685433,647.13,646.79,0.956]
[1750193530998,1.01685433,647.12,646.79,0.956]
[1750193531198,1.15018636,647.35,646.79,0.956]
[1750193531496,1.01647576,647.34,646.79,0.956]
[1750193531698,1.01647576,647.33,646.79,0.956]
[1750193531894,1.01647576,647.32,646.79,0.956]
[1750193532094,1.01647576,647.31,646.79,0.956]
[1750193532294,1.01647576,647.3,646.79,0.956]
[1750193532497,1.01647576,647.29,646.79,0.956]
[1750193532799,1.01647576,647.28,646.79,0.956]
[1750193532993,1.01647576,647.27,646.79,0.956]
[1750193533196,1.01647576,647.26,646.79,0.956]
[1750193533394,1.01647576,647.25,646.79,0.956]
[1750193533597,1.01647576,647.24,646.79,0.956]
[1750193533798,1.01647576,647.23,646.79,0.956]
[1750193533994,1.01647576,647.22,646.79,0.956]
[1750193534194,1.01647576,647.21,646.79,0.956]
[1750193534498,1.01647576,647.2,646.79,0.956]
[1750193534697,1.01647576,647.19,646.79,0.956]
[1750193534898,1.01647576,647.18,646.79,0.956]
[1750193535097,1.01647576,647.17,646.79,0.956]
[1750193535397,1.01647576,647.16,646.79,0.956]
[1750193535600,1.01647576,647.15,646.79,0.956]
[1750193535800,1.01647576,647.14,646.79,0.956]
[1750193536000,1.01647576,647.13,646.79,0.956]
[1750193536199,1.15018636,647.36,646.79,0.956]
[1750193536401,1.15018636,647.34,646.79,0.956]
[1750193536699,1.01593547,647.33,646.79,0.956]
[1750193536902,1.01593547,647.32,646.79,0.956]
[1750193537197,1.01593547,647.31,646.79,0.956]
[1750193537401,1.01593547,647.3,646.79,0.956]
[1750193537597,1.01593547,647.29,646.79,0.956]
[1750193537798,1.01593547,647.28,646.79,0.956]
[1750193537998,1.01593547,647.27,646.8,1.198]
[1750193538301,1.01593547,647.26,646.8,1.198]
[1750193538503,1.01593547,647.25,646.8,1.198]
[1750193538704,1.01593547,647.24,646.8,1.198]
[1750193538898,1.01593547,647.23,646.8,1.198]
[1750193539100,1.01593547,647.22,646.8,1.198]
[1750193539305,1.01593547,647.21,646.8,1.198]
[1750193539500,1.01593547,647.2,646.8,1.198]
[1750193539800,1.01593547,647.19,646.8,1.198]
[1750193540006,1.01593547,647.18,646.8,1.198]
[1750193540201,1.01593547,647.17,646.8,1.198]
[1750193540402,1.01593547,647.16,646.8,1.198]
[1750193540603,1.15018636,647.35,646.8,1.198]
[1750193540803,1.01684123,647.34,646.8,1.198]
[1750193541103,1.01684123,647.33,646.8,1.198]
[1750193541303,1.01684123,647.32,646.8,1.198]
[1750193541602,1.01684123,647.31,646.8,1.198]
[1750193541804,1.01684123,647.3,646.8,1.198]
[1750193542003,1.01684123,647.29,646.8,1.198]
[1750193542204,1.01684123,647.28,646.8,1.198]
[1750193542407,1.01684123,647.27,646.8,1.198]
[1750193542605,1.01684123,647.26,646.8,1.198]
[1750193542803,1.01684123,647.25,646.8,1.198]
[1750193543003,1.01684123,647.24,646.8,1.198]
[1750193543207,1.01684123,647.23,646.8,1.198]
[1750193543408,1.01684123,647.22,646.8,1.198]
[1750193543608,1.01684123,647.21,646.8,1.198]
[1750193543906,1.01684123,647.2,646.8,1.198]
[1750193544104,1.01684123,647.19,646.8,1.198]
[1750193544308,1.15018636,647.39,646.8,1.198]
[1750193544505,1.01668695,647.38,646.8,1.198]
[1750193544706,1.01668695,647.37,646.8,1.198]
[1750193545009,1.01668695,647.36,646.8,1.198]
[1750193545305,3.81900036,648.06,646.8,1.198]
[1750193545306,1.01668695,647.35,646.8,1.198]
[1750193545511,1.01668695,647.34,646.8,1.198]
[1750193545806,1.01668695,647.33,646.8,1.198]
[1750193546010,1.01668695,647.32,646.8,1.198]
[1750193546210,1.01668695,647.31,646.8,1.198]
[1750193546409,1.01668695,647.3,646.8,1.198]
[1750193546610,1.01668695,647.29,646.8,1.198]
[1750193546806,1.01668695,647.28,646.8,1.198]
[1750193547010,1.01668695,647.27,646.8,1.198]
[1750193547211,1.01668695,647.26,646.8,1.198]
[1750193547506,1.01668695,647.25,646.8,1.198]
[1750193547712,1.01668695,647.24,646.8,1.198]
[1750193547911,1.15018636,647.38,646.8,1.198]
[1750193547912,1.01668695,647.23,646.8,1.198]
[1750193548109,1.01668695,647.22,646.8,1.198]
[1750193548311,1.01668695,647.21,646.8,1.198]
[1750193548510,1.01668695,647.2,646.8,1.198]
[1750193548810,1.01668695,647.19,646.8,1.198]
[1750193549114,1.01668695,647.18,646.8,1.198]
[1750193549410,1.15018636,647.39,646.8,1.198]
[1750193549611,1.016376,647.38,646.8,1.198]
[1750193549814,1.016376,647.37,646.8,1.198]
[1750193550111,1.016376,647.36,646.8,1.198]
[1750193550308,1.016376,647.35,646.8,1.198]
[1750193550514,1.016376,647.34,646.81,1.43]
[1750193550714,1.016376,647.33,646.81,1.43]
[1750193550914,1.016376,647.32,646.81,1.43]
[1750193551113,1.016376,647.31,646.81,1.43]
[1750193551311,1.016376,647.3,646.81,1.43]
[1750193551514,1.016376,647.29,646.81,1.43]
[1750193551713,1.016376,647.28,646.82,1.077]
[1750193552013,1.016376,647.27,646.82,1.077]
[1750193552211,1.016376,647.26,646.82,1.077]
[1750193552411,1.016376,647.25,646.82,1.077]
[1750193552612,1.016376,647.24,646.82,1.077]
[1750193552815,1.016376,647.23,646.82,1.077]
[1750193553016,1.016376,647.22,646.82,1.077]
[1750193553315,1.016376,647.21,646.82,1.077]
[1750193553515,1.016376,647.2,646.82,1.077]
[1750193553718,1.016376,647.19,646.82,1.077]
[1750193553916,1.016376,647.18,646.82,1.077]
[1750193554214,1.15018636,647.37,646.82,1.077]
[1750193554417,1.01659984,647.36,646.82,1.077]
[1750193554617,1.01659984,647.35,646.82,1.077]
[1750193554818,1.01659984,647.34,646.82,1.077]
[1750193555017,1.01659984,647.33,646.82,1.077]
[1750193555212,1.15018636,647.37,646.82,1.077]
[1750193555213,1.01659984,647.32,646.82,1.077]
[1750193555516,1.01659984,647.31,646.82,1.077]
[1750193555715,1.01659984,647.3,646.82,1.077]
[1750193555913,1.01659984,647.29,646.82,1.077]
[1750193556217,1.01659984,647.28,646.82,1.077]
[1750193556416,1.01659984,647.27,646.82,1.077]
[1750193556616,1.01659984,647.26,646.82,1.077]
[1750193556818,1.01659984,647.25,646.82,1.077]
[1750193557017,1.01659984,647.24,646.82,1.077]
[1750193557215,1.01659984,647.23,646.82,1.077]
[1750193557418,1.01659984,647.22,646.82,1.077]
[1750193557614,1.01659984,647.21,646.82,1.077]
[1750193557819,1.01659984,647.2,646.82,1.077]
[1750193558020,1.01659984,647.19,646.82,1.077]
[1750193558317,1.01659984,647.18,646.82,1.077]
[1750193558519,1.01659984,647.17,646.82,1.077]
[1750193558720,1.01659984,647.16,646.82,1.077]
[1750193558926,1.15018636,647.34,646.82,1.077]
[1750193559223,1.01731051,647.33,646.82,1.077]
[1750193559518,1.01731051,647.32,646.82,1.077]
[1750193559722,1.01731051,647.31,646.82,1.077]
[1750193559921,1.01731051,647.3,646.82,1.077]
[1750193560123,1.15018636,647.34,646.82,1.077]
[1750193560124,1.01731051,647.29,646.82,1.077]
[1750193560323,1.01731051,647.28,646.82,1.077]
[1750193560521,1.01731051,647.27,646.82,1.077]
[1750193560725,1.01731051,647.26,646.82,1.077]
[1750193560924,1.01731051,647.25,646.82,1.077]
[1750193561121,1.01731051,647.24,646.82,1.077]
[1750193561326,2.29140022,647.54,646.82,1.077]
[1750193561327,1.01731051,647.23,646.82,1.077]
[1750193561626,1.01731051,647.22,646.82,1.077]
[1750193561924,1.15018636,647.32,646.82,1.077]
[1750193561925,1.01731051,647.21,646.82,1.077]
[1750193562120,1.01731051,647.2,646.82,1.077]
[1750193562325,1.01731051,647.19,646.82,1.077]
[1750193562525,1.01731051,647.18,646.82,1.077]
[1750193562722,1.01731051,647.17,646.82,1.077]
[1750193562926,1.01731051,647.16,646.82,1.077]
[1750193563125,1.01731051,647.15,646.82,1.077]
[1750193563324,1.01731051,647.14,646.82,1.077]
[1750193563522,1.01731051,647.13,646.82,1.077]
[1750193563721,1.01731051,647.12,646.82,1.077]
[1750193563926,1.15018636,647.31,646.82,1.077]
[1750193564126,1.0185448,647.3,646.82,1.077]
[1750193564425,1.15018636,647.31,646.82,1.077]
[1750193564426,1.0185448,647.29,646.82,1.077]
[1750193564622,1.0185448,647.28,646.82,1.077]
[1750193564926,1.0185448,647.27,646.83,1.305]
[1750193565125,1.0185448,647.26,646.83,1.305]
[1750193565328,1.0185448,647.25,646.83,1.305]
[1750193565523,1.0185448,647.24,646.83,1.305]
[1750193565725,1.0185448,647.23,646.83,1.305]
[1750193565924,1.0185448,647.22,646.83,1.305]
[1750193566127,1.0185448,647.21,646.83,1.305]
[1750193566428,1.0185448,647.2,646.83,1.305]
[1750193566628,1.0185448,647.19,646.83,1.305]
[1750193566927,1.0185448,647.18,646.83,1.305]
[1750193567128,1.0185448,647.17,646.83,1.305]
[1750193567324,1.0185448,647.16,646.83,1.305]
[1750193567525,1.0185448,647.15,646.83,1.305]
[1750193567726,1.0185448,647.14,646.83,1.305]
[1750193568025,1.0185448,647.13,646.83,1.305]
[1750193568226,1.0185448,647.12,646.83,1.305]
[1750193568424,1.0185448,647.11,646.83,1.305]
[1750193568626,1.15018636,647.3,646.83,1.305]
[1750193568826,1.02054468,647.29,646.83,1.305]
[1750193569126,1.02054468,647.28,646.83,1.305]
[1750193569326,1.02054468,647.27,646.83,1.305]
[1750193569529,1.02054468,647.26,646.83,1.305]
[1750193569829,1.02054468,647.25,646.83,1.305]
[1750193570129,1.02054468,647.24,646.83,1.305]
[1750193570326,1.02054468,647.23,646.83,1.305]
[1750193570526,1.02054468,647.22,646.83,1.305]
[1750193570725,1.02054468,647.21,646.83,1.305]
[1750193571025,1.02054468,647.2,646.83,1.305]
[1750193571224,1.15018636,647.29,646.83,1.305]
[1750193571225,1.02054468,647.19,646.83,1.305]
[1750193571429,1.02054468,647.18,646.83,1.305]
[1750193571728,1.02054468,647.17,646.83,1.305]
[1750193571931,1.02054468,647.16,646.83,1.305]
[1750193572129,1.02054468,647.15,646.83,1.305]
[1750193572327,1.02054468,647.14,646.83,1.305]
[1750193572527,1.02054468,647.13,646.83,1.305]
[1750193572827,1.02054468,647.12,646.83,1.305]
[1750193573031,1.02054468,647.11,646.83,1.305]
[1750193573229,1.02054468,647.1,646.83,1.305]
[1750193573429,1.15018636,647.28,646.83,1.305]
[1750193573629,1.02105983,647.27,646.83,1.305]
[1750193573830,1.02105983,647.26,646.83,1.305]
[1750193574030,1.02105983,647.25,646.83,1.305]
[1750193574229,1.02105983,647.24,646.83,1.305]
[1750193574429,1.02105983,647.23,646.83,1.305]
[1750193574628,1.02105983,647.22,646.83,1.305]
[1750193574832,1.02105983,647.21,646.83,1.305]
[1750193575132,1.02105983,647.2,646.83,1.305]
[1750193575332,1.02105983,647.19,646.83,1.305]
[1750193575530,1.02105983,647.18,646.83,1.305]
[1750193575729,1.02105983,647.17,646.83,1.305]
[1750193575933,1.02105983,647.16,646.83,1.305]
[1750193576229,1.02105983,647.15,646.83,1.305]
[1750193576429,1.02105983,647.14,646.83,1.305]
[1750193576630,1.02105983,647.13,646.83,1.305]
[1750193576833,1.02105983,647.12,646.83,1.305]
[1750193577030,1.02105983,647.11,646.83,1.305]
[1750193577230,1.02105983,647.1,646.83,1.305]
[1750193577530,1.02105983,647.09,646.83,1.305]
[1750193577834,1.02105983,647.08,646.83,1.305]
[1750193578134,1.02105983,647.07,646.83,1.305]
[1750193578336,1.02105983,647.06,646.83,1.305]
[1750193578535,1.02105983,647.05,646.83,1.305]
[1750193578736,1.02105983,647.04,646.83,1.305]
[1750193579032,1.02105983,647.03,646.83,1.305]
[1750193579233,1.02105983,647.02,646.83,1.305]
[1750193579434,1.02105983,647.01,646.83,1.305]
[1750193579634,1.02105983,647.0,646.83,1.305]
[1750193579936,1.02105983,646.99,646.83,1.305]
[1750193580137,1.02122816,646.98,646.83,1.305]
[1750193580332,1.15018636,647.18,646.83,1.305]
[1750193580635,2.17141382,647.17,646.83,1.305]
[1750193580835,1.02122746,647.16,646.83,1.305]
[1750193581137,1.02122746,647.15,646.83,1.305]
[1750193581433,1.02122746,647.14,646.83,1.305]
[1750193581637,1.02122746,647.13,646.83,1.305]
[1750193581834,1.02122746,647.12,646.83,1.305]
[1750193582035,1.02122746,647.11,646.83,1.305]
[1750193582239,1.02122746,647.1,646.83,1.305]
[1750193582432,1.02122746,647.09,646.84,1.191]
[1750193582636,1.02122746,647.08,646.84,1.191]
[1750193582834,1.02122746,647.07,646.84,1.191]
[1750193583037,1.02122746,647.06,646.84,1.191]
[1750193583235,1.02122746,647.05,646.84,1.191]
[1750193583438,1.02122746,647.04,646.84,1.191]
[1750193583637,1.02122746,647.03,646.84,1.191]
[1750193583836,1.02122746,647.02,646.84,1.191]
[1750193584036,1.02122746,647.01,646.84,1.191]
[1750193584239,1.02122746,647.0,646.84,1.191]
[1750193584440,1.02122746,646.99,646.84,1.191]
[1750193584642,1.02122746,646.98,646.84,1.191]
[1750193584941,1.15018636,647.17,646.84,1.191]
[1750193585141,1.0214259,647.16,646.84,1.191]
[1750193585337,1.0214259,647.15,646.84,1.191]
[1750193585543,1.0214259,647.14,646.84,1.191]
[1750193585737,1.0214259,647.13,646.84,1.191]
[1750193585940,1.0214259,647.12,646.84,1.191]
[1750193586242,1.0214259,647.11,646.84,1.191]
[1750193586442,1.0214259,647.1,646.84,1.191]
[1750193586739,1.0214259,647.09,646.84,1.191]
[1750193587042,1.0214259,647.08,646.84,1.191]
[1750193587241,1.0214259,647.07,646.84,1.191]
[1750193587442,1.0214259,647.06,646.84,1.191]
[1750193587642,1.0214259,647.05,646.84,1.191]
[1750193587943,1.0214259,647.04,646.84,1.191]
[1750193588137,1.0214259,647.03,646.84,1.191]
[1750193588342,1.0214259,647.02,646.84,1.191]
[1750193588542,1.0214259,647.01,646.84,1.191]
[1750193588740,1.0214259,647.0,646.84,1.191]
[1750193588943,1.0214259,646.99,646.84,1.191]
[1750193589143,1.15018636,647.18,646.84,1.191]
[1750193589345,1.02107802,647.17,646.84,1.191]
[1750193589543,1.02107802,647.16,646.84,1.191]
[1750193589843,1.02107802,647.15,646.84,1.191]
[1750193590043,1.02107802,647.14,646.84,1.191]
[1750193590243,1.02107802,647.13,646.84,1.191]
[1750193590443,1.02107802,647.12,646.84,1.191]
[1750193590644,1.02107802,647.11,646.84,1.191]
[1750193590844,1.02107802,647.1,646.84,1.191]
[1750193591143,1.02107802,647.09,646.84,1.191]
[1750193591340,1.02107802,647.08,646.84,1.191]
[1750193591544,1.02107802,647.07,646.85,1.235]
[1750193591744,1.15018636,647.18,646.85,1.235]
[1750193591745,1.02107802,647.06,646.85,1.235]
[1750193591941,1.02107802,647.05,646.85,1.235]
[1750193592142,1.02107802,647.04,646.85,1.235]
[1750193592442,1.02107802,647.03,646.85,1.235]
[1750193592641,1.02107802,647.02,646.85,1.235]
[1750193592940,1.02107802,647.01,646.85,1.235]
[1750193593144,1.02107802,647.0,646.85,1.235]
[1750193593344,1.15018636,647.19,646.85,1.235]
[1750193593542,1.02081216,647.18,646.85,1.235]
[1750193593845,1.02081216,647.17,646.85,1.235]
[1750193594042,1.02081216,647.16,646.85,1.235]
[1750193594341,1.02081216,647.15,646.85,1.235]
[1750193594645,1.15018636,647.19,646.85,1.235]
[1750193594646,1.02081216,647.14,646.85,1.235]
[1750193594846,1.02081216,647.13,646.85,1.235]
[1750193595046,1.02081216,647.12,646.85,1.235]
[1750193595342,1.02081216,647.11,646.85,1.235]
[1750193595546,1.02081216,647.1,646.86,1.18]
[1750193595844,1.02081216,647.09,646.86,1.18]
[1750193596046,1.02081216,647.08,646.86,1.18]
[1750193596245,1.02081216,647.07,646.86,1.18]
[1750193596445,1.02081216,647.06,646.86,1.18]
[1750193596647,1.02081216,647.05,646.86,1.18]
[1750193596847,1.02081216,647.04,646.86,1.18]
[1750193597044,1.02081216,647.03,646.86,1.18]
[1750193597348,1.02081216,647.02,646.86,1.18]
[1750193597548,1.02081216,647.01,646.86,1.18]
[1750193597744,1.15018636,647.19,646.86,1.18]
[1750193597945,1.01909652,647.18,646.86,1.18]
[1750193598146,1.01909652,647.17,646.86,1.18]
[1750193598346,1.01909652,647.16,646.86,1.18]
[1750193598546,1.01909652,647.15,646.86,1.18]
[1750193598745,1.01909652,647.14,646.86,1.18]
[1750193598951,1.01909652,647.13,646.86,1.18]
[1750193599147,1.01909652,647.12,646.86,1.18]
[1750193599353,1.01909652,647.11,646.86,1.18]
[1750193599550,1.01909652,647.1,646.86,1.18]
[1750193599845,1.01909652,647.09,646.86,1.18]